[Event "Titled Tuesday Blitz October 18 Late 2022"]
[White "Hamidi, Amir Mohammad"]
[Black "Daeschler, Florian"]
[WhiteFideId "12563285"]
[BlackFideId "20678193"]
[WhiteElo "2256"]
[BlackElo "2187"]
[Result "1-0"]
[Round "02"]
[TimeControl "180+1"]
[Date "2022.10.19"]
[WhiteClock "0:00:49"]
[BlackClock "0:00:22"]

1. d4 {[%clk 0:03:00]}  Nf6 {[%clk 0:02:56]} 2. c4 {[%clk 0:02:52]}  c5 {[%clk 0:02:56]} 3. Nf3 {[%clk 0:02:52]}  cxd4 {[%clk 0:02:56]} 4. Nxd4 {[%clk 0:02:53]}  g6 {[%clk 0:02:49]} 5. Nc3 {[%clk 0:02:52]}  Nc6 {[%clk 0:02:50]} 6. g3 {[%clk 0:02:52]}  Bg7 {[%clk 0:02:49]} 7. Bg2 {[%clk 0:02:53]}  O-O {[%clk 0:02:50]} 8. O-O {[%clk 0:02:53]}  d6 {[%clk 0:02:47]} 9. b3 {[%clk 0:02:52]}  Bd7 {[%clk 0:02:43]} 10. Bb2 {[%clk 0:02:52]}  Qa5 {[%clk 0:02:43]} 11. e3 {[%clk 0:02:51]}  Rfc8 {[%clk 0:02:43]} 12. Qd2 {[%clk 0:02:50]}  a6 {[%clk 0:02:39]} 13. Rfd1 {[%clk 0:02:47]}  Rab8 {[%clk 0:02:34]} 14. Rac1 {[%clk 0:02:45]}  Qh5 {[%clk 0:02:30]} 15. Nd5 {[%clk 0:02:25]}  Nxd5 {[%clk 0:02:20]} 16. Bxd5 {[%clk 0:02:13]}  Bg4 {[%clk 0:02:15]} 17. Re1 {[%clk 0:02:06]}  Ne5 {[%clk 0:02:11]} 18. f4 {[%clk 0:02:03]}  Nf3+ {[%clk 0:02:04]} 19. Nxf3 {[%clk 0:01:59]}  Bxf3 {[%clk 0:02:04]} 20. Bxg7 {[%clk 0:01:59]}  Kxg7 {[%clk 0:01:55]} 21. Qd4+ {[%clk 0:01:33]}  Kg8 {[%clk 0:01:52]} 22. Bxf3 {[%clk 0:01:25]}  Qxf3 {[%clk 0:01:52]} 23. Qd5 {[%clk 0:01:26]}  Qxd5 {[%clk 0:01:43]} 24. cxd5 {[%clk 0:01:27]}  Kf8 {[%clk 0:01:43]} 25. Kf2 {[%clk 0:01:27]}  Ke8 {[%clk 0:01:43]} 26. Kf3 {[%clk 0:01:27]}  Kd7 {[%clk 0:01:44]} 27. Ke4 {[%clk 0:01:23]}  Rxc1 {[%clk 0:01:31]} 28. Rxc1 {[%clk 0:01:24]}  Rc8 {[%clk 0:01:32]} 29. Rxc8 {[%clk 0:01:13]}  Kxc8 {[%clk 0:01:33]} 30. f5 {[%clk 0:01:08]}  Kd7 {[%clk 0:01:23]} 31. fxg6 {[%clk 0:01:01]}  hxg6 {[%clk 0:01:12]} 32. g4 {[%clk 0:01:00]}  Ke8 {[%clk 0:01:06]} 33. Kf4 {[%clk 0:00:59]}  Kf8 {[%clk 0:01:06]} 34. h4 {[%clk 0:00:57]}  Kg7 {[%clk 0:01:06]} 35. e4 {[%clk 0:00:58]}  Kf6 {[%clk 0:01:05]} 36. e5+ {[%clk 0:00:54]}  dxe5+ {[%clk 0:01:05]} 37. Ke4 {[%clk 0:00:55]}  Kg7 {[%clk 0:00:53]} 38. Kxe5 {[%clk 0:00:53]}  Kf8 {[%clk 0:00:53]} 39. d6 {[%clk 0:00:50]}  exd6+ {[%clk 0:00:48]} 40. Kxd6 {[%clk 0:00:51]}  Kg7 {[%clk 0:00:47]} 41. Ke5 {[%clk 0:00:49]}  b6 {[%clk 0:00:23]} 42. a3 {[%clk 0:00:46]}  a5 {[%clk 0:00:23]} 43. a4 {[%clk 0:00:46]}  Kg8 {[%clk 0:00:22]} 44. Kf6 {[%clk 0:00:45]}  Kf8 {[%clk 0:00:22]} 45. h5 {[%clk 0:00:46]}  gxh5 {[%clk 0:00:20]} 46. gxh5 {[%clk 0:00:47]}  Kg8 {[%clk 0:00:21]} 47. h6 {[%clk 0:00:46]}  Kh7 {[%clk 0:00:19]} 48. Kxf7 {[%clk 0:00:47]}  Kxh6 {[%clk 0:00:19]} 49. Ke6 {[%clk 0:00:47]}  Kg5 {[%clk 0:00:20]} 50. Kd6 {[%clk 0:00:47]}  Kf4 {[%clk 0:00:21]} 51. Kc6 {[%clk 0:00:48]}  Ke4 {[%clk 0:00:22]} 52. Kxb6 {[%clk 0:00:48]}  Kd4 {[%clk 0:00:23]} 53. Kxa5 {[%clk 0:00:49]}  Kc5 {[%clk 0:00:22]} 54. Ka6 {[%clk 0:00:49]} 1-0


[Site "https://www.chess.com"]

[Event "Titled Tuesday Blitz October 18 Late 2022"]
[White "Harish, Neeraj"]
[Black "Leschinsky, Gary"]
[WhiteFideId "30958130"]
[BlackFideId "30951321"]
[WhiteElo "1815"]
[BlackElo "1855"]
[Result "0-1"]
[Round "02"]
[TimeControl "180+1"]
[Date "2022.10.19"]
[WhiteClock "0:00:10"]
[BlackClock "0:00:25"]

1. e4 {[%clk 0:03:00]}  c5 {[%clk 0:03:00]} 2. Nf3 {[%clk 0:03:00]}  d6 {[%clk 0:02:47]} 3. d4 {[%clk 0:02:58]}  cxd4 {[%clk 0:02:48]} 4. Nxd4 {[%clk 0:02:58]}  Nf6 {[%clk 0:02:47]} 5. Nc3 {[%clk 0:02:52]}  Nc6 {[%clk 0:02:47]} 6. Bg5 {[%clk 0:02:47]}  e6 {[%clk 0:02:45]} 7. Bb5 {[%clk 0:02:45]}  Bd7 {[%clk 0:02:43]} 8. Qd3 {[%clk 0:02:45]}  Be7 {[%clk 0:02:39]} 9. O-O-O {[%clk 0:02:43]}  a6 {[%clk 0:02:37]} 10. Bxc6 {[%clk 0:02:43]}  bxc6 {[%clk 0:02:32]} 11. f4 {[%clk 0:02:42]}  c5 {[%clk 0:02:31]} 12. Nf3 {[%clk 0:02:40]}  h6 {[%clk 0:02:31]} 13. Bxf6 {[%clk 0:02:39]}  gxf6 {[%clk 0:02:32]} 14. f5 {[%clk 0:02:31]}  Qa5 {[%clk 0:02:28]} 15. Kb1 {[%clk 0:02:18]}  Bb5 {[%clk 0:02:25]} 16. Qd2 {[%clk 0:02:11]}  Rb8 {[%clk 0:02:19]} 17. Nh4 {[%clk 0:01:24]}  Kd7 {[%clk 0:02:04]} 18. fxe6+ {[%clk 0:01:22]}  fxe6 {[%clk 0:02:03]} 19. Ng6 {[%clk 0:01:22]}  Rhd8 {[%clk 0:01:59]} 20. Nxe7 {[%clk 0:01:20]}  Kxe7 {[%clk 0:02:00]} 21. Qxh6 {[%clk 0:01:18]}  Be8 {[%clk 0:01:58]} 22. Qh7+ {[%clk 0:00:53]}  Bf7 {[%clk 0:01:56]} 23. Nd5+ {[%clk 0:00:53]}  exd5 {[%clk 0:01:52]} 24. exd5 {[%clk 0:00:53]}  Rxb2+ {[%clk 0:01:40]} 25. Kxb2 {[%clk 0:00:36]}  Rb8+ {[%clk 0:01:33]} 26. Kc1 {[%clk 0:00:36]}  Qa3+ {[%clk 0:01:29]} 27. Kd2 {[%clk 0:00:36]}  Qb4+ {[%clk 0:01:28]} 28. c3 {[%clk 0:00:27]}  Qf4+ {[%clk 0:00:50]} 29. Kd3 {[%clk 0:00:26]}  c4+ {[%clk 0:00:45]} 30. Kc2 {[%clk 0:00:23]}  Qf2+ {[%clk 0:00:36]} 31. Rd2 {[%clk 0:00:23]}  Rb2+ {[%clk 0:00:36]} 32. Kxb2 {[%clk 0:00:22]}  Qxd2+ {[%clk 0:00:36]} 33. Qc2 {[%clk 0:00:21]}  Qxd5 {[%clk 0:00:37]} 34. Re1+ {[%clk 0:00:19]}  Kf8 {[%clk 0:00:37]} 35. h4 {[%clk 0:00:18]}  Qb5+ {[%clk 0:00:32]} 36. Ka1 {[%clk 0:00:17]}  Qh5 {[%clk 0:00:31]} 37. Qe4 {[%clk 0:00:16]}  Qa5 {[%clk 0:00:27]} 38. g4 {[%clk 0:00:16]}  Qxc3+ {[%clk 0:00:27]} 39. Kb1 {[%clk 0:00:16]}  Qb4+ {[%clk 0:00:27]} 40. Ka1 {[%clk 0:00:16]}  Qc3+ {[%clk 0:00:26]} 41. Kb1 {[%clk 0:00:17]}  d5 {[%clk 0:00:25]} 42. Qe7+ {[%clk 0:00:16]}  Kg8 {[%clk 0:00:25]} 43. g5 {[%clk 0:00:10]}  Bg6+ {[%clk 0:00:25]} 0-1


[Site "https://www.chess.com"]

[Event "Titled Tuesday Blitz October 18 Late 2022"]
[White "Harvey, Marcus R"]
[Black "Luxama, Jacques Muller"]
[WhiteFideId "400092"]
[BlackFideId "11900113"]
[WhiteElo "2457"]
[BlackElo "1931"]
[Result "1-0"]
[Round "02"]
[TimeControl "180+1"]
[Date "2022.10.19"]
[WhiteClock "0:00:50"]
[BlackClock "0:00:02"]

1. c4 {[%clk 0:03:00]}  g6 {[%clk 0:02:56]} 2. d4 {[%clk 0:02:59]}  Bg7 {[%clk 0:02:56]} 3. Nc3 {[%clk 0:03:00]}  Nf6 {[%clk 0:02:54]} 4. e4 {[%clk 0:03:00]}  d6 {[%clk 0:02:54]} 5. Nf3 {[%clk 0:02:59]}  O-O {[%clk 0:02:52]} 6. Be2 {[%clk 0:03:00]}  e5 {[%clk 0:02:42]} 7. O-O {[%clk 0:03:00]}  Nc6 {[%clk 0:02:40]} 8. dxe5 {[%clk 0:03:00]}  dxe5 {[%clk 0:02:37]} 9. Qxd8 {[%clk 0:03:01]}  Nxd8 {[%clk 0:02:26]} 10. Rd1 {[%clk 0:02:39]}  c6 {[%clk 0:02:17]} 11. Nxe5 {[%clk 0:02:24]}  Nxe4 {[%clk 0:02:12]} 12. Nxe4 {[%clk 0:02:24]}  Bxe5 {[%clk 0:02:10]} 13. Bg5 {[%clk 0:02:24]}  f6 {[%clk 0:02:03]} 14. Nxf6+ {[%clk 0:02:20]}  Bxf6 {[%clk 0:01:58]} 15. Bxf6 {[%clk 0:02:20]}  Rxf6 {[%clk 0:01:58]} 16. Rxd8+ {[%clk 0:02:19]}  Rf8 {[%clk 0:01:59]} 17. Rad1 {[%clk 0:02:18]}  Be6 {[%clk 0:01:57]} 18. Rxa8 {[%clk 0:02:18]}  Rxa8 {[%clk 0:01:57]} 19. Kf1 {[%clk 0:02:13]}  Kf7 {[%clk 0:01:55]} 20. Ke1 {[%clk 0:02:13]}  Ke7 {[%clk 0:01:55]} 21. Kd2 {[%clk 0:02:13]}  Rf8 {[%clk 0:01:54]} 22. f3 {[%clk 0:02:11]}  Rf5 {[%clk 0:01:51]} 23. a3 {[%clk 0:02:05]}  g5 {[%clk 0:01:43]} 24. Bd3 {[%clk 0:02:01]}  Rf7 {[%clk 0:01:35]} 25. h3 {[%clk 0:01:58]}  h6 {[%clk 0:01:34]} 26. Ke3 {[%clk 0:01:58]}  Rf4 {[%clk 0:01:33]} 27. Rc1 {[%clk 0:01:51]}  c5 {[%clk 0:01:30]} 28. Be4 {[%clk 0:01:50]}  b6 {[%clk 0:01:25]} 29. b3 {[%clk 0:01:49]}  a5 {[%clk 0:01:20]} 30. a4 {[%clk 0:01:49]}  Rf8 {[%clk 0:01:18]} 31. Rd1 {[%clk 0:01:47]}  Rc8 {[%clk 0:01:07]} 32. Rd3 {[%clk 0:01:40]}  Rf8 {[%clk 0:01:05]} 33. Bd5 {[%clk 0:01:40]}  Bd7 {[%clk 0:01:03]} 34. Kf2 {[%clk 0:01:38]}  Rf4 {[%clk 0:01:00]} 35. Be4 {[%clk 0:01:29]}  Rf8 {[%clk 0:00:48]} 36. Kg3 {[%clk 0:01:24]}  Rf4 {[%clk 0:00:46]} 37. Re3 {[%clk 0:01:23]}  Kd6 {[%clk 0:00:42]} 38. Rd3+ {[%clk 0:01:23]}  Ke7 {[%clk 0:00:41]} 39. Rd2 {[%clk 0:01:23]}  Be6 {[%clk 0:00:35]} 40. Kf2 {[%clk 0:01:23]}  Rf8 {[%clk 0:00:34]} 41. Ke3 {[%clk 0:01:23]}  Rf6 {[%clk 0:00:30]} 42. Bd5 {[%clk 0:01:22]}  Bf5 {[%clk 0:00:28]} 43. Kf2 {[%clk 0:01:19]}  Bd7 {[%clk 0:00:22]} 44. Rd1 {[%clk 0:01:11]}  Rf4 {[%clk 0:00:21]} 45. Be4 {[%clk 0:01:07]}  Be6 {[%clk 0:00:17]} 46. Rh1 {[%clk 0:01:05]}  Rf8 {[%clk 0:00:15]} 47. h4 {[%clk 0:01:05]}  g4 {[%clk 0:00:14]} 48. Rd1 {[%clk 0:01:01]}  gxf3 {[%clk 0:00:13]} 49. Bxf3 {[%clk 0:01:01]}  Rf4 {[%clk 0:00:12]} 50. g3 {[%clk 0:01:00]}  Rf8 {[%clk 0:00:11]} 51. Ke3 {[%clk 0:01:00]}  Bd7 {[%clk 0:00:07]} 52. g4 {[%clk 0:00:57]}  Be8 {[%clk 0:00:05]} 53. Be4 {[%clk 0:00:53]}  Bd7 {[%clk 0:00:04]} 54. g5 {[%clk 0:00:53]}  hxg5 {[%clk 0:00:03]} 55. hxg5 {[%clk 0:00:54]}  Rg8 {[%clk 0:00:03]} 56. Kf4 {[%clk 0:00:52]}  Rf8+ {[%clk 0:00:03]} 57. Ke5 {[%clk 0:00:52]}  Rf2 {[%clk 0:00:02]} 58. Rg1 {[%clk 0:00:52]}  Re2 {[%clk 0:00:02]} 59. Kf4 {[%clk 0:00:50]} 1-0


[Site "https://www.chess.com"]

[Event "Titled Tuesday Blitz October 18 Late 2022"]
[White "Hirneise, Jens"]
[Black "Papasimakopoulos, Alexandros"]
[WhiteFideId "24614734"]
[BlackFideId "4244125"]
[WhiteElo "2519"]
[BlackElo "2761"]
[Result "0-1"]
[Round "02"]
[TimeControl "180+1"]
[Date "2022.10.19"]
[WhiteClock "0:00:02"]
[BlackClock "0:00:01"]

1. e4 {[%clk 0:03:00]}  e6 {[%clk 0:03:00]} 2. d4 {[%clk 0:02:59]}  d5 {[%clk 0:03:00]} 3. Nd2 {[%clk 0:02:56]}  Nf6 {[%clk 0:03:00]} 4. Bd3 {[%clk 0:02:48]}  c5 {[%clk 0:03:00]} 5. c3 {[%clk 0:02:48]}  Nc6 {[%clk 0:03:00]} 6. e5 {[%clk 0:02:46]}  Nd7 {[%clk 0:02:59]} 7. Ne2 {[%clk 0:02:46]}  cxd4 {[%clk 0:02:58]} 8. cxd4 {[%clk 0:02:47]}  f6 {[%clk 0:02:59]} 9. exf6 {[%clk 0:02:47]}  Nxf6 {[%clk 0:03:00]} 10. O-O {[%clk 0:02:44]}  Bd6 {[%clk 0:03:00]} 11. Nf3 {[%clk 0:02:44]}  Qc7 {[%clk 0:03:01]} 12. Re1 {[%clk 0:02:42]}  O-O {[%clk 0:02:59]} 13. Ng3 {[%clk 0:02:42]}  Bd7 {[%clk 0:02:55]} 14. a3 {[%clk 0:02:42]}  Rae8 {[%clk 0:02:49]} 15. Bg5 {[%clk 0:02:35]}  h6 {[%clk 0:02:45]} 16. Bxf6 {[%clk 0:02:32]}  Rxf6 {[%clk 0:02:46]} 17. Nh5 {[%clk 0:02:31]}  Rff8 {[%clk 0:02:35]} 18. Bg6 {[%clk 0:02:26]}  Re7 {[%clk 0:02:34]} 19. Rc1 {[%clk 0:02:22]}  Be8 {[%clk 0:02:31]} 20. Bxe8 {[%clk 0:02:15]}  Rexe8 {[%clk 0:02:31]} 21. b4 {[%clk 0:02:10]}  Qf7 {[%clk 0:02:31]} 22. Ng3 {[%clk 0:02:10]}  a6 {[%clk 0:02:19]} 23. Qe2 {[%clk 0:01:55]}  Qg6 {[%clk 0:02:12]} 24. b5 {[%clk 0:01:45]}  axb5 {[%clk 0:02:10]} 25. Qxb5 {[%clk 0:01:46]}  Re7 {[%clk 0:02:05]} 26. Qb3 {[%clk 0:01:39]}  Na5 {[%clk 0:01:58]} 27. Qc3 {[%clk 0:01:28]}  Nc4 {[%clk 0:01:57]} 28. a4 {[%clk 0:01:24]}  Bc7 {[%clk 0:01:51]} 29. Qc2 {[%clk 0:01:20]}  Qg4 {[%clk 0:01:44]} 30. h3 {[%clk 0:01:15]}  Qf4 {[%clk 0:01:39]} 31. Nh5 {[%clk 0:01:08]}  Qf7 {[%clk 0:01:37]} 32. Ng3 {[%clk 0:01:07]}  Bf4 {[%clk 0:01:28]} 33. Ra1 {[%clk 0:01:02]}  Rc7 {[%clk 0:01:21]} 34. Qe2 {[%clk 0:00:56]}  Rc6 {[%clk 0:01:21]} 35. a5 {[%clk 0:00:52]}  Ra8 {[%clk 0:01:20]} 36. Ne5 {[%clk 0:00:42]}  Bxe5 {[%clk 0:01:20]} 37. dxe5 {[%clk 0:00:43]}  Rxa5 {[%clk 0:01:18]} 38. Rxa5 {[%clk 0:00:42]}  Nxa5 {[%clk 0:01:19]} 39. Ra1 {[%clk 0:00:42]}  b6 {[%clk 0:01:17]} 40. Qb5 {[%clk 0:00:40]}  Qc7 {[%clk 0:01:13]} 41. Kh2 {[%clk 0:00:39]}  Qxe5 {[%clk 0:01:08]} 42. Rxa5 {[%clk 0:00:37]}  bxa5 {[%clk 0:01:02]} 43. Qxc6 {[%clk 0:00:37]}  d4 {[%clk 0:00:58]} 44. Qc8+ {[%clk 0:00:28]}  Kh7 {[%clk 0:00:57]} 45. Qc2+ {[%clk 0:00:27]}  Kg8 {[%clk 0:00:56]} 46. Qd3 {[%clk 0:00:18]}  a4 {[%clk 0:00:54]} 47. Qc4 {[%clk 0:00:14]}  h5 {[%clk 0:00:48]} 48. h4 {[%clk 0:00:13]}  Qf6 {[%clk 0:00:45]} 49. Qxa4 {[%clk 0:00:11]}  Qxh4+ {[%clk 0:00:41]} 50. Kg1 {[%clk 0:00:12]}  Qf4 {[%clk 0:00:12]} 51. Qe8+ {[%clk 0:00:07]}  Kh7 {[%clk 0:00:11]} 52. Qxh5+ {[%clk 0:00:07]}  Kg8 {[%clk 0:00:12]} 53. Qe8+ {[%clk 0:00:07]}  Kh7 {[%clk 0:00:12]} 54. Qxe6 {[%clk 0:00:06]}  Qc1+ {[%clk 0:00:09]} 55. Kh2 {[%clk 0:00:06]}  Qc3 {[%clk 0:00:08]} 56. Qf5+ {[%clk 0:00:05]}  Kh8 {[%clk 0:00:08]} 57. Ne4 {[%clk 0:00:03]}  Qc7+ {[%clk 0:00:07]} 58. g3 {[%clk 0:00:03]}  g6 {[%clk 0:00:02]} 59. Qxg6 {[%clk 0:00:02]}  d3 {[%clk 0:00:01]} 0-1


[Site "https://www.chess.com"]

[Event "Titled Tuesday Blitz October 18 Late 2022"]
[White "Holt, Conrad"]
[Black "Mihajlov, Sebastian"]
[WhiteFideId "2034387"]
[BlackFideId "1512110"]
[WhiteElo "2592"]
[BlackElo "2464"]
[Result "1-0"]
[Round "02"]
[TimeControl "180+1"]
[Date "2022.10.18"]
[WhiteClock "0:02:10"]
[BlackClock "0:01:40"]

1. d4 {[%clk 0:03:00]}  Nf6 {[%clk 0:02:58]} 2. c4 {[%clk 0:02:59]}  c6 {[%clk 0:02:58]} 3. Nc3 {[%clk 0:02:59]}  d5 {[%clk 0:02:59]} 4. e3 {[%clk 0:02:59]}  e6 {[%clk 0:02:57]} 5. Bd3 {[%clk 0:02:59]}  Nbd7 {[%clk 0:02:57]} 6. e4 {[%clk 0:02:59]}  dxe4 {[%clk 0:02:41]} 7. Nxe4 {[%clk 0:02:59]}  Nxe4 {[%clk 0:02:42]} 8. Bxe4 {[%clk 0:02:59]}  Nf6 {[%clk 0:02:42]} 9. Bc2 {[%clk 0:03:00]}  c5 {[%clk 0:02:41]} 10. Nf3 {[%clk 0:02:59]}  Bd6 {[%clk 0:02:38]} 11. O-O {[%clk 0:02:57]}  O-O {[%clk 0:02:38]} 12. Qd3 {[%clk 0:02:57]}  h6 {[%clk 0:02:37]} 13. Rd1 {[%clk 0:02:56]}  Qe7 {[%clk 0:02:37]} 14. dxc5 {[%clk 0:02:53]}  Bxc5 {[%clk 0:02:37]} 15. Ne5 {[%clk 0:02:52]}  b6 {[%clk 0:01:50]} 16. Ng4 {[%clk 0:02:33]}  Re8 {[%clk 0:01:50]} 17. Nxh6+ {[%clk 0:02:15]}  gxh6 {[%clk 0:01:47]} 18. Bxh6 {[%clk 0:02:13]}  Bb7 {[%clk 0:01:40]} 19. Qg3+ {[%clk 0:02:10]} 1-0


[Site "https://www.chess.com"]

[Event "Titled Tuesday Blitz October 18 Late 2022"]
[White "Ibadov, Dashgyn"]
[Black "Hoffmann, Asa"]
[WhiteFideId "24107514"]
[BlackFideId "2001470"]
[WhiteElo "2208"]
[BlackElo "2117"]
[Result "1-0"]
[Round "02"]
[TimeControl "180+1"]
[Date "2022.10.19"]
[WhiteClock "0:00:16"]
[BlackClock "0:00:16"]

1. e4 {[%clk 0:03:00]}  d6 {[%clk 0:02:57]} 2. d4 {[%clk 0:03:00]}  Nf6 {[%clk 0:02:55]} 3. Nc3 {[%clk 0:03:00]}  c6 {[%clk 0:02:54]} 4. f4 {[%clk 0:03:00]}  Qa5 {[%clk 0:02:53]} 5. e5 {[%clk 0:02:50]}  Ne4 {[%clk 0:02:51]} 6. Bd2 {[%clk 0:02:35]}  Nxd2 {[%clk 0:02:50]} 7. Qxd2 {[%clk 0:02:36]}  d5 {[%clk 0:02:50]} 8. Nf3 {[%clk 0:02:35]}  Bf5 {[%clk 0:02:47]} 9. Bd3 {[%clk 0:02:34]}  Bxd3 {[%clk 0:02:43]} 10. Qxd3 {[%clk 0:02:34]}  e6 {[%clk 0:02:42]} 11. f5 {[%clk 0:02:31]}  Qa6 {[%clk 0:02:37]} 12. fxe6 {[%clk 0:02:29]}  fxe6 {[%clk 0:02:35]} 13. Qe3 {[%clk 0:02:29]}  Nd7 {[%clk 0:02:31]} 14. O-O-O {[%clk 0:02:24]}  Be7 {[%clk 0:02:24]} 15. Kb1 {[%clk 0:02:11]}  O-O-O {[%clk 0:02:22]} 16. Ne2 {[%clk 0:02:12]}  Nf8 {[%clk 0:02:14]} 17. h4 {[%clk 0:02:05]}  h6 {[%clk 0:02:13]} 18. g4 {[%clk 0:02:02]}  Qb6 {[%clk 0:02:01]} 19. Ng3 {[%clk 0:01:59]}  c5 {[%clk 0:01:53]} 20. Nh5 {[%clk 0:01:52]}  g6 {[%clk 0:01:51]} 21. Nf6 {[%clk 0:01:49]}  Nd7 {[%clk 0:01:46]} 22. g5 {[%clk 0:01:47]}  h5 {[%clk 0:01:39]} 23. c3 {[%clk 0:01:39]}  Rhf8 {[%clk 0:01:26]} 24. Qd3 {[%clk 0:01:37]}  Bxf6 {[%clk 0:01:21]} 25. gxf6 {[%clk 0:01:36]}  Rg8 {[%clk 0:01:16]} 26. Rhg1 {[%clk 0:01:35]}  Nf8 {[%clk 0:01:16]} 27. Ng5 {[%clk 0:01:20]}  Rd7 {[%clk 0:01:04]} 28. Nh3 {[%clk 0:01:16]}  Qd8 {[%clk 0:00:59]} 29. dxc5 {[%clk 0:01:13]}  Qc7 {[%clk 0:00:58]} 30. Qd4 {[%clk 0:01:10]}  Kb8 {[%clk 0:00:54]} 31. Nf4 {[%clk 0:01:09]}  Rf7 {[%clk 0:00:48]} 32. Nxh5 {[%clk 0:01:06]}  Rh8 {[%clk 0:00:45]} 33. Ng7 {[%clk 0:01:05]}  Rxg7 {[%clk 0:00:39]} 34. fxg7 {[%clk 0:01:03]}  Qxg7 {[%clk 0:00:39]} 35. c4 {[%clk 0:00:53]}  Nd7 {[%clk 0:00:34]} 36. cxd5 {[%clk 0:00:52]}  Qxe5 {[%clk 0:00:33]} 37. Qxe5+ {[%clk 0:00:49]}  Nxe5 {[%clk 0:00:32]} 38. dxe6 {[%clk 0:00:49]}  Re8 {[%clk 0:00:30]} 39. Rge1 {[%clk 0:00:41]}  Nc6 {[%clk 0:00:26]} 40. e7 {[%clk 0:00:32]}  Kc7 {[%clk 0:00:25]} 41. Rd6 {[%clk 0:00:30]}  Rxe7 {[%clk 0:00:23]} 42. Rxe7+ {[%clk 0:00:25]}  Nxe7 {[%clk 0:00:23]} 43. Kc2 {[%clk 0:00:24]}  b6 {[%clk 0:00:23]} 44. Re6 {[%clk 0:00:18]}  Kd7 {[%clk 0:00:23]} 45. cxb6 {[%clk 0:00:17]}  axb6 {[%clk 0:00:22]} 46. Rxb6 {[%clk 0:00:17]}  Nd5 {[%clk 0:00:22]} 47. Rb3 {[%clk 0:00:16]}  Nf4 {[%clk 0:00:20]} 48. Rf3 {[%clk 0:00:14]}  Ne6 {[%clk 0:00:19]} 49. Rf6 {[%clk 0:00:13]}  Nd4+ {[%clk 0:00:16]} 50. Kd3 {[%clk 0:00:13]}  Nf5 {[%clk 0:00:16]} 51. Rxf5 {[%clk 0:00:13]}  gxf5 {[%clk 0:00:16]} 52. Ke3 {[%clk 0:00:14]}  Ke6 {[%clk 0:00:16]} 53. Kf4 {[%clk 0:00:15]}  Kf6 {[%clk 0:00:16]} 54. a4 {[%clk 0:00:16]} 1-0


[Site "https://www.chess.com"]

[Event "Titled Tuesday Blitz October 18 Late 2022"]
[White "Izuzquiza Gonzalez, Javier"]
[Black "Graif, William"]
[WhiteFideId "3101029"]
[BlackFideId "2609835"]
[WhiteElo "2034"]
[BlackElo "2205"]
[Result "0-1"]
[Round "02"]
[TimeControl "180+1"]
[Date "2022.10.19"]
[WhiteClock "0:00:09"]
[BlackClock "0:00:10"]

1. d4 {[%clk 0:03:00]}  Nf6 {[%clk 0:02:51]} 2. c4 {[%clk 0:03:01]}  e5 {[%clk 0:02:51]} 3. dxe5 {[%clk 0:03:00]}  Ng4 {[%clk 0:02:51]} 4. Bf4 {[%clk 0:03:00]}  Nc6 {[%clk 0:02:50]} 5. Nf3 {[%clk 0:02:59]}  f6 {[%clk 0:02:50]} 6. exf6 {[%clk 0:02:56]}  Qxf6 {[%clk 0:02:51]} 7. Qc1 {[%clk 0:02:36]}  Bb4+ {[%clk 0:02:16]} 8. Bd2 {[%clk 0:02:22]}  Bc5 {[%clk 0:01:52]} 9. e3 {[%clk 0:02:01]}  O-O {[%clk 0:01:28]} 10. Be2 {[%clk 0:01:48]}  Nce5 {[%clk 0:01:22]} 11. Bc3 {[%clk 0:01:33]}  Nxf3+ {[%clk 0:00:53]} 12. Bxf3 {[%clk 0:01:31]}  Qh4 {[%clk 0:00:52]} 13. Qd2 {[%clk 0:01:07]}  Bxe3 {[%clk 0:00:36]} 14. Qd5+ {[%clk 0:00:48]}  Kh8 {[%clk 0:00:36]} 15. g3 {[%clk 0:00:25]}  Bxf2+ {[%clk 0:00:35]} 16. Ke2 {[%clk 0:00:17]}  Qe7+ {[%clk 0:00:28]} 17. Qe4 {[%clk 0:00:14]}  Qxe4+ {[%clk 0:00:13]} 18. Bxe4 {[%clk 0:00:15]}  d5 {[%clk 0:00:12]} 19. cxd5 {[%clk 0:00:14]}  Bd7 {[%clk 0:00:12]} 20. Nd2 {[%clk 0:00:15]}  Rae8 {[%clk 0:00:11]} 21. h3 {[%clk 0:00:15]}  Nf6 {[%clk 0:00:10]} 22. Kd3 {[%clk 0:00:15]}  Nxe4 {[%clk 0:00:10]} 23. Nxe4 {[%clk 0:00:16]}  Bf5 {[%clk 0:00:10]} 24. Rae1 {[%clk 0:00:08]}  Bxe1 {[%clk 0:00:10]} 25. Rxe1 {[%clk 0:00:09]}  Rxe4 {[%clk 0:00:10]} 0-1


[Site "https://www.chess.com"]

[Event "Titled Tuesday Blitz October 18 Late 2022"]
[White "Jimenez Jimenez, Leandro"]
[Black "Manukyan, Artyom"]
[WhiteFideId "6415253"]
[BlackFideId "13305786"]
[WhiteElo "2217"]
[BlackElo "2078"]
[Result "1-0"]
[Round "02"]
[TimeControl "180+1"]
[Date "2022.10.19"]
[WhiteClock "0:00:37"]
[BlackClock "0:00:04"]

1. d4 {[%clk 0:03:00]}  d5 {[%clk 0:03:00]} 2. c4 {[%clk 0:03:01]}  e6 {[%clk 0:03:00]} 3. Nc3 {[%clk 0:02:59]}  Nf6 {[%clk 0:02:59]} 4. cxd5 {[%clk 0:02:59]}  exd5 {[%clk 0:03:00]} 5. Bg5 {[%clk 0:02:59]}  c6 {[%clk 0:03:00]} 6. e3 {[%clk 0:03:00]}  Qb6 {[%clk 0:03:01]} 7. a3 {[%clk 0:02:54]}  Ne4 {[%clk 0:02:58]} 8. Nxe4 {[%clk 0:02:37]}  dxe4 {[%clk 0:02:59]} 9. Qd2 {[%clk 0:02:36]}  Be6 {[%clk 0:02:49]} 10. Ne2 {[%clk 0:02:32]}  Bd5 {[%clk 0:02:38]} 11. Nc3 {[%clk 0:02:18]}  Nd7 {[%clk 0:02:21]} 12. Be2 {[%clk 0:02:17]}  Bd6 {[%clk 0:02:20]} 13. O-O {[%clk 0:02:14]}  O-O {[%clk 0:02:16]} 14. Bh4 {[%clk 0:02:11]}  f5 {[%clk 0:01:37]} 15. Rac1 {[%clk 0:02:07]}  Rae8 {[%clk 0:01:35]} 16. Bg3 {[%clk 0:02:04]}  Rf6 {[%clk 0:01:25]} 17. Nxd5 {[%clk 0:01:43]}  cxd5 {[%clk 0:01:17]} 18. Rc3 {[%clk 0:01:40]}  Ref8 {[%clk 0:01:15]} 19. Bxd6 {[%clk 0:01:31]}  Qxd6 {[%clk 0:01:14]} 20. g3 {[%clk 0:01:32]}  g5 {[%clk 0:01:10]} 21. f4 {[%clk 0:01:29]}  exf3 {[%clk 0:01:09]} 22. Bxf3 {[%clk 0:01:29]}  f4 {[%clk 0:01:07]} 23. gxf4 {[%clk 0:01:23]}  gxf4 {[%clk 0:01:08]} 24. e4 {[%clk 0:01:23]}  dxe4 {[%clk 0:01:06]} 25. Bxe4 {[%clk 0:01:22]}  Kh8 {[%clk 0:01:05]} 26. Kh1 {[%clk 0:01:21]}  Nb6 {[%clk 0:00:59]} 27. d5 {[%clk 0:01:14]}  Qe5 {[%clk 0:00:53]} 28. Bf3 {[%clk 0:01:09]}  Rd6 {[%clk 0:00:35]} 29. Re1 {[%clk 0:01:06]}  Qf6 {[%clk 0:00:28]} 30. Rc7 {[%clk 0:00:59]}  Nd7 {[%clk 0:00:13]} 31. Re6 {[%clk 0:00:52]}  Rxe6 {[%clk 0:00:03]} 32. dxe6 {[%clk 0:00:52]}  Ne5 {[%clk 0:00:03]} 33. Be4 {[%clk 0:00:41]}  Ng6 {[%clk 0:00:02]} 34. Qd7 {[%clk 0:00:38]}  Ne7 {[%clk 0:00:02]} 35. Qxe7 {[%clk 0:00:36]}  Qxe7 {[%clk 0:00:03]} 36. Rxe7 {[%clk 0:00:36]}  f3 {[%clk 0:00:04]} 37. Kg1 {[%clk 0:00:37]}  f2+ {[%clk 0:00:04]} 38. Kf1 {[%clk 0:00:37]} 1-0


[Site "https://www.chess.com"]